fUSD/lending_fUSD_20240129
["ID","MTS","AMOUNT","RATE_DAILY","PERIOD"]
[312984854,1706563848315,-1546.31,0.00052054,31]
[312984855,1706563848325,-662.67,0.00052054,31]
[312984856,1706563848334,-1102.83,0.00052054,31]
[312984857,1706563848343,-5934.0,0.00052054,31]
[312984858,1706563848353,-500.0,0.00052054,31]
[312984859,1706563848362,-1005.84,0.00052054,31]
[312984860,1706563848371,-609.75,0.00052054,31]
[312984861,1706563848380,-2560.09,0.00052054,31]
[312984862,1706563848390,-500.0,0.00052054,31]
[312984863,1706563848399,-354.50579439,0.00052054,31]
[312984864,1706563848408,-500.0,0.00052054,31]
[312984865,1706563848417,-814.84,0.00052054,31]
[312984866,1706563848426,-500.0,0.00052054,31]
[312984867,1706563848436,-663.69,0.00052054,31]
[312984868,1706563848449,-500.0,0.00052054,31]
[312984869,1706563848459,-1452.48,0.00052054,31]
[312984870,1706563848468,-849.71,0.00052054,31]
[312984871,1706563848478,-1148.59,0.00052054,31]
[312984872,1706563848487,-1623.14,0.00052054,31]
[312984873,1706563848496,-500.0,0.00052054,2]
[312984874,1706563848505,-921.53,0.00052054,31]
[312984875,1706563848514,-594.99,0.00052054,31]
[312984876,1706563848523,-500.0,0.00052054,31]
[312984877,1706563848533,-500.0,0.00052054,31]
[312984878,1706563848543,-5889.38,0.00052054,31]
[312984879,1706563848552,-500.0,0.00052054,14]
[312984880,1706563848561,-2207.48,0.00052054,31]
[312984881,1706563848570,-826.1,0.00052054,31]
[312984882,1706563848579,-500.0,0.00052054,31]
[312984883,1706563848589,-500.0,0.00052054,31]
[312984884,1706563848598,-500.0,0.00052054,31]
[312984885,1706563848607,-500.0,0.00052054,7]
[312984886,1706563848617,-1000.0,0.00052054,7]
[312984887,1706563848626,-500.0,0.00052054,31]
[312984888,1706563848635,-627.54,0.00052054,31]
[312984889,1706563848644,-500.0,0.00052054,31]
[312984890,1706563848653,-500.0,0.00052054,31]
[312984891,1706563848662,-500.0,0.00052054,31]
[312984892,1706563848673,-505.15,0.00052054,31]
[312984893,1706563848682,-4323.36,0.00052054,31]
[312984894,1706563848691,-2476.39,0.00052054,31]
[312984895,1706563848701,-500.0,0.00052054,31]
[312984896,1706563848711,-623.73,0.00052054,31]
[312984897,1706563848720,-1263.55,0.00052054,31]
[312984898,1706563848729,-500.0,0.00052054,31]
[312984899,1706563848738,-897.13,0.00052054,31]
[312984900,1706563848748,-990.25,0.00052054,31]
[312984901,1706563848757,-500.0,0.00052054,31]
[312984902,1706563848767,-590.39,0.00052054,31]
[312984903,1706563848777,-500.0,0.00052054,31]
[312984904,1706563848786,-500.0,0.00052054,31]
[312984905,1706563848795,-1006.36,0.00052054,31]
[312984906,1706563848804,-500.0,0.00052054,31]
[312984907,1706563848814,-945.35,0.00052054,31]
[312984908,1706563848823,-500.0,0.00052054,31]
[312984909,1706563848833,-539.86,0.00052054,31]
[312984910,1706563848842,-500.0,0.00052054,31]
[312984911,1706563848852,-554.76,0.00052054,31]
[312984912,1706563848862,-500.0,0.00052054,31]
[312984913,1706563848871,-500.0,0.00052054,31]
[312984914,1706563848881,-594.21,0.00052054,31]
[312984915,1706563848890,-500.0,0.00052054,31]
[312984916,1706563848900,-900.24,0.00052054,31]
[312984917,1706563848909,-500.0,0.00052054,31]
[312984918,1706563848924,-500.0,0.00052054,31]
[312984919,1706563848934,-500.0,0.00052054,31]
[312984920,1706563848945,-500.0,0.00052054,31]
[312984921,1706563848955,-500.0,0.00052054,31]
[312984922,1706563848965,-2623.74,0.00052054,31]
[312984923,1706563848975,-666.84,0.00052054,31]
[312984924,1706563848985,-584.07,0.00052054,31]
[312984925,1706563848994,-500.0,0.00052054,31]
[312984926,1706563849005,-500.0,0.00052054,31]
[312984927,1706563849015,-1329.46,0.00052054,31]
[312984928,1706563849025,-500.0,0.00052054,31]
[312984929,1706563849036,-500.0,0.00052054,31]
[312984930,1706563849046,-500.0,0.00052054,2]
[312984931,1706563849056,-971.54,0.00052054,31]
[312984932,1706563849066,-500.0,0.00052054,31]
[312984933,1706563849075,-326.65034936,0.00052054,31]
[312984934,1706563849084,-500.0,0.00052054,31]
[312984935,1706563849094,-500.0,0.00052055,30]
[312984936,1706563849103,-214.50583474,0.00052064,45]
[312984937,1706563849112,-4262.25973201,0.00052064,45]
[312984938,1706563849122,-2110.13809249,0.00052064,45]
[312984939,1706563849132,-150.0,0.00052067,30]
[312984940,1706563849141,-6862.92654689,0.00052076,2]
[312984941,1706563849151,-150.0,0.00052097,30]
[312984942,1706563849160,-151.013,0.00052148,60]
[312984943,1706563849169,-150.0,0.00052157,30]
[312984944,1706563849179,-500.0,0.0005223,30]
[312984945,1706563849188,-966.14264291,0.0005224,4]
[312984946,1706563849200,-150.0,0.00052248,30]
[312984947,1706563849209,-250.0,0.0005229,2]
[312984948,1706563849218,-404.0,0.0005229,2]
[312984949,1706563849228,-200.0,0.00052328,31]
[312984950,1706563849237,-500.0,0.00052328,31]
[312984951,1706563849246,-500.0,0.00052328,31]
[312984952,1706563849255,-500.0,0.00052328,31]
[312984953,1706563849264,-500.0,0.00052328,31]
[312984954,1706563849274,-500.0,0.00052328,31]
[312984955,1706563849284,-500.0,0.00052328,2]
[312984956,1706563849294,-500.0,0.00052328,31]
[312984957,1706563849304,-500.0,0.00052328,15]
[312984958,1706563849314,-500.0,0.00052328,2]
[312984959,1706563849323,-500.0,0.00052328,31]
[312984960,1706563849333,-500.0,0.00052328,31]
[312984961,1706563849342,-500.0,0.00052328,31]
[312984962,1706563849352,-500.0,0.00052328,2]
[312984963,1706563849361,-798.58,0.00052328,31]
[312984964,1706563849371,-500.0,0.00052328,31]
[312984965,1706563849381,-627.69,0.00052328,7]
[312984966,1706563849390,-500.0,0.00052328,31]
[312984967,1706563849400,-515.98319416,0.00052328,31]
[312984968,1706563849411,-500.0,0.00052328,31]
[312984969,1706563849420,-500.0,0.00052328,31]
[312984970,1706563849430,-161.02458818,0.00052328,31]
[312984971,1706563849441,-500.0,0.00052328,31]
[312984972,1706563849453,-500.0,0.00052328,31]
[312984973,1706563849463,-500.0,0.00052328,31]
[312984974,1706563849472,-500.0,0.00052328,31]
[312984975,1706563849481,-500.0,0.00052328,31]
[312984976,1706563849490,-500.0,0.00052328,31]
[312984977,1706563849499,-500.0,0.00052328,31]
[312984978,1706563849509,-500.0,0.00052328,31]
[312984979,1706563849518,-500.0,0.00052328,31]
[312984980,1706563849528,-500.0,0.00052328,31]
[312984981,1706563849539,-500.0,0.00052328,31]
[312984982,1706563849548,-500.0,0.00052328,31]
[312984983,1706563849558,-500.0,0.00052328,31]
[312984984,1706563849567,-1105.16,0.00052328,2]
[312984985,1706563849577,-500.0,0.00052328,31]
[312984986,1706563849586,-500.0,0.00052328,31]
[312984987,1706563849596,-500.0,0.00052328,31]
[312984988,1706563849607,-500.0,0.00052328,31]
[312984989,1706563849616,-3018.85,0.00052328,31]
[312984990,1706563849626,-500.0,0.00052328,31]
[312984991,1706563849635,-500.0,0.00052328,31]
[312984992,1706563849645,-366.82,0.00052328,31]
[312984993,1706563849655,-500.0,0.00052328,31]
[312984994,1706563849665,-500.0,0.00052328,31]
[312984995,1706563849674,-500.0,0.00052328,31]
[312984996,1706563849683,-675.63,0.00052328,31]
[312984997,1706563849695,-1041.77,0.00052328,31]
[312984998,1706563849704,-500.0,0.00052328,31]
[312984999,1706563849713,-500.0,0.00052328,2]
[312985000,1706563849722,-537.35,0.00052328,31]
[312985001,1706563849732,-391.73707376,0.00052328,31]
[312985002,1706563849741,-500.0,0.00052328,31]
[312985003,1706563849750,-500.0,0.00052328,31]
[312985004,1706563849759,-500.0,0.00052328,31]
[312985005,1706563849768,-500.0,0.00052328,31]
[312985006,1706563849777,-500.0,0.00052328,31]
[312985007,1706563849787,-583.37031596,0.00052328,31]
[312985008,1706563849796,-285.28,0.00052328,31]
[312985009,1706563849805,-716.0,0.00052328,31]
[312985010,1706563849817,-500.0,0.00052328,31]
[312985011,1706563849827,-1170.46,0.00052328,31]
[312985012,1706563849836,-690.67,0.00052328,31]
[312985013,1706563849845,-500.0,0.00052328,31]
[312985014,1706563849854,-500.0,0.00052328,31]
[312985015,1706563849863,-500.0,0.00052328,31]
[312985016,1706563849873,-500.0,0.00052328,31]
[312985017,1706563849882,-1028.34,0.00052328,7]
[312985018,1706563849891,-466.18834176,0.00052328,31]
[312985019,1706563849900,-608.29,0.00052328,31]
[312985020,1706563849910,-500.0,0.00052328,31]
[312985021,1706563849922,-1303.83,0.00052328,31]
[312985022,1706563849931,-500.0,0.00052328,31]
[312985023,1706563849941,-500.0,0.00052328,31]
[312985024,1706563849952,-500.0,0.00052328,31]
[312985025,1706563849962,-500.0,0.00052328,31]
[312985026,1706563849971,-972.44,0.00052328,31]
[312985027,1706563849980,-500.0,0.00052328,31]
[312985028,1706563849991,-1332.13,0.00052328,7]
[312985029,1706563850000,-2336.99,0.00052328,31]
[312985030,1706563850010,-500.0,0.00052328,31]
[312985031,1706563850019,-1755.24,0.00052328,31]
[312985032,1706563850028,-4639.95,0.00052328,31]
[312985033,1706563850037,-843.3,0.00052328,31]
[312985034,1706563850047,-1862.17,0.00052328,5]
[312985035,1706563850056,-500.0,0.00052328,31]
[312985036,1706563850065,-3435.87,0.00052328,31]
[312985037,1706563850074,-660.79,0.00052328,31]
[312985038,1706563850084,-608.12,0.00052328,31]
[312985039,1706563850094,-273.83872959,0.00052328,31]
[312985040,1706563850103,-500.0,0.00052328,31]
[312985041,1706563850112,-500.0,0.00052328,7]
[312985042,1706563850121,-1081.96,0.00052328,31]
[312985043,1706563850131,-2479.02,0.00052328,31]
[312985044,1706563850140,-500.0,0.00052328,31]
[312985045,1706563850149,-640.1,0.00052328,31]
[312985046,1706563850158,-672.06,0.00052328,31]
[312985047,1706563850167,-615.27,0.00052328,31]
[312985048,1706563850177,-849.28,0.00052328,31]
[312985049,1706563850186,-536.20445364,0.00052328,31]
[312985050,1706563850197,-500.0,0.00052328,31]
[312985051,1706563850206,-500.0,0.00052328,31]
[312985052,1706563850215,-500.0,0.00052328,31]
[312985053,1706563850224,-837.32,0.00052328,31]
[312985054,1706563850233,-500.0,0.00052328,31]
[312985055,1706563850242,-849.39,0.00052328,31]
[312985056,1706563850251,-500.0,0.00052328,31]
[312985057,1706563850261,-500.0,0.00052328,31]
[312985058,1706563850270,-652.38,0.00052328,31]
[312985059,1706563850279,-500.0,0.00052328,31]
[312985060,1706563850289,-712.79,0.00052328,31]
[312985061,1706563850298,-500.0,0.00052328,31]
[312985062,1706563850308,-500.0,0.00052328,31]
[312985063,1706563850317,-500.0,0.00052328,31]
[312985064,1706563850326,-1445.15,0.00052328,31]
[312985065,1706563850335,-500.0,0.00052328,31]
[312985066,1706563850344,-500.0,0.00052328,31]
[312985067,1706563850353,-710.1,0.00052328,31]
[312985068,1706563850362,-1738.15,0.00052328,31]
[312985069,1706563850407,-500.0,0.00052328,31]
[312985070,1706563850417,-500.0,0.00052328,31]
[312985071,1706563850426,-500.0,0.00052328,31]
[312985072,1706563850435,-500.0,0.00052328,31]
[312985073,1706563850444,-500.0,0.00052328,31]
[312985074,1706563850453,-634.01,0.00052328,31]
[312985075,1706563850462,-500.0,0.00052328,31]
[312985076,1706563850471,-678.09,0.00052328,31]
[312985077,1706563850480,-2822.66,0.00052328,31]
[312985078,1706563850490,-500.0,0.00052328,31]
[312985079,1706563850500,-1503.3,0.00052328,31]
[312985080,1706563850509,-500.0,0.00052328,31]
[312985081,1706563850519,-887.24,0.00052328,31]
[312985082,1706563850528,-500.0,0.00052328,31]
[312985083,1706563850537,-500.0,0.00052328,31]
[312985084,1706563850546,-500.0,0.00052328,31]
[312985085,1706563850555,-625.75,0.00052328,31]
[312985086,1706563850564,-500.0,0.00052328,31]
[312985087,1706563850574,-638.22,0.00052328,31]
[312985088,1706563850583,-500.0,0.00052328,31]
[312985089,1706563850592,-500.0,0.00052328,31]
[312985090,1706563850602,-500.0,0.00052328,31]
[312985091,1706563850611,-1209.53,0.00052328,31]
[312985092,1706563850620,-481.53828668,0.00052328,31]
[312985093,1706563850629,-2671.2,0.00052328,31]
[312985094,1706563850638,-500.0,0.00052328,31]
[312985095,1706563850647,-500.0,0.00052328,31]
[312985096,1706563850656,-718.17,0.00052328,31]
[312985097,1706563850665,-1546.31,0.00052328,31]
[312985098,1706563850674,-662.67,0.00052328,31]
[312985099,1706563850683,-1102.83,0.00052328,31]
[312985100,1706563850693,-5934.0,0.00052328,31]
[312985101,1706563850704,-500.0,0.00052328,31]
[312985102,1706563850713,-1005.84,0.00052328,31]
[312985103,1706563850723,-609.75,0.00052328,31]
[312985104,1706563850732,-2560.09,0.00052328,31]
[312985105,1706563850741,-500.0,0.00052328,31]
[312985106,1706563850751,-500.0,0.00052328,31]
[312985107,1706563850760,-500.0,0.00052328,31]
[312985108,1706563850769,-663.69,0.00052328,31]
[312985109,1706563850778,-814.84,0.00052328,31]
[312985110,1706563850788,-500.0,0.00052328,31]
[312985111,1706563850797,-1452.48,0.00052328,31]
[312985112,1706563850806,-849.71,0.00052328,31]
[312985113,1706563850815,-1148.59,0.00052328,31]
[312985114,1706563850824,-1623.14,0.00052328,31]
[312985115,1706563850833,-500.0,0.00052328,2]
[312985116,1706563850842,-921.53,0.00052328,31]
[312985117,1706563850851,-594.99,0.00052328,31]
[312985118,1706563850859,-500.0,0.00052328,31]
[312985119,1706563850869,-5889.38,0.00052328,31]
[312985120,1706563850878,-500.0,0.00052328,14]
[312985121,1706563850887,-2207.48,0.00052328,31]
[312985122,1706563850897,-826.1,0.00052328,31]
[312985123,1706563850906,-500.0,0.00052328,31]
[312985124,1706563850917,-500.0,0.00052328,31]
[312985125,1706563850926,-310.30712464,0.00052328,31]
[312985126,1706563850936,-1000.0,0.00052328,7]
[312985127,1706563850947,-627.54,0.00052328,31]
[312985128,1706563850958,-500.0,0.00052328,31]
[312985129,1706563850967,-500.0,0.00052328,31]
[312985130,1706563850976,-500.0,0.00052328,31]
[312985131,1706563850985,-505.15,0.00052328,31]
[312985132,1706563850996,-4323.36,0.00052328,31]
[312985133,1706563851006,-2476.39,0.00052328,31]
[312985134,1706563851015,-500.0,0.00052328,31]
[312985135,1706563851024,-623.73,0.00052328,31]
[312985136,1706563851033,-1263.55,0.00052328,31]
[312985137,1706563851042,-500.0,0.00052328,31]
[312985138,1706563851052,-897.13,0.00052328,31]
[312985139,1706563851061,-990.25,0.00052328,31]
[312985140,1706563851070,-500.0,0.00052328,31]
[312985141,1706563851079,-590.39,0.00052328,31]
[312985142,1706563851089,-500.0,0.00052328,31]
[312985143,1706563851099,-500.0,0.00052328,31]
[312985144,1706563851108,-1006.36,0.00052328,31]
[312985145,1706563851118,-500.0,0.00052328,31]
[312985146,1706563851127,-945.35,0.00052328,31]
[312985147,1706563851136,-500.0,0.00052328,31]
[312985148,1706563851146,-539.86,0.00052328,31]
[312985149,1706563851155,-500.0,0.00052328,31]
[312985150,1706563851164,-554.76,0.00052328,31]
[312985151,1706563851173,-500.0,0.00052328,31]
[312985152,1706563851182,-500.0,0.00052328,31]
[312985153,1706563851191,-594.21,0.00052328,31]
[312985154,1706563851203,-500.0,0.00052328,31]
[312985155,1706563851213,-900.24,0.00052328,31]
[312985156,1706563851223,-500.0,0.00052328,31]
[312985157,1706563851232,-500.0,0.00052328,31]
[312985158,1706563851241,-500.0,0.00052328,31]
[312985159,1706563851251,-500.0,0.00052328,31]
[312985160,1706563851260,-500.0,0.00052328,31]
[312985161,1706563851269,-2623.74,0.00052328,31]
[312985162,1706563851277,-666.84,0.00052328,31]
[312985163,1706563851286,-584.07,0.00052328,31]
[312985164,1706563851296,-500.0,0.00052328,31]
[312985165,1706563851305,-500.0,0.00052328,31]
[312985166,1706563851315,-1329.46,0.00052328,31]
[312985167,1706563851323,-500.0,0.00052328,2]
[312985168,1706563851332,-971.54,0.00052328,31]
[312985169,1706563851342,-150.0,0.00052339,30]
[312985170,1706563851351,-150.0,0.00052339,30]
[312985171,1706563851360,-6799.0,0.0005239,2]
[312985172,1706563851369,-4083.0,0.0005239,2]
[312985173,1706563851378,-160.37335377,0.000524,29]
[312985174,1706563851387,-376.14901022,0.000524,29]
[312985175,1706563851396,-59.58213835,0.000524,14]
[312985176,1706563851417,-927.1112263,0.000524,14]
[312985177,1706563851426,-1234.37103582,0.000524,2]
[312985178,1706563851435,-1.73553788,0.000524,50]
[312985179,1706563851448,-981.49573864,0.000524,50]
[312985180,1706563851457,-150.0,0.0005243,30]
[312985181,1706563851466,-151.013,0.00052448,60]
[312985182,1706563851475,-169.57216375,0.00052464,2]
[312985189,1706565032275,-496.20108709,0.00024899,2]
[312985190,1706565032332,-194.83125857,0.00024899,2]
[312985191,1706565032341,-756.85744404,0.000249,2]
[312985192,1706565032351,-228.84539518,0.00025,3]
[312985193,1706565032362,-308.807424,0.00025,3]
[312985194,1706565032391,-12.34718082,0.00025,3]
[312985195,1706565032400,-154.23034225,0.000262,2]
[312985196,1706565032409,-150.0,0.00026299,2]
[312985197,1706565032418,-150.0,0.00026299,2]
[312985198,1706565032427,-1356.6236353,0.000263,2]
[312985199,1706565032438,-440.3763647,0.000263,2]
[312985200,1706565032447,-2653.0,0.000263,2]
[312985201,1706565032456,-155.41,0.00026351,2]
[312985202,1706565032466,-230.68,0.000269,2]
[312985203,1706565032475,-286.77450337,0.00027,3]
[312985204,1706565032499,-313.22549663,0.00027,3]
[312985205,1706565032508,-320.54,0.00027397,2]
[312985206,1706565032517,-320.54,0.00027686,2]
[312985207,1706565032526,-635.4575863,0.00027686,2]
[312985208,1706565032537,-450.0,0.00027686,2]
[312985209,1706565032548,-1610.6324137,0.00027686,2]
[312985210,1706565032557,-583.92414685,0.00027686,2]
[312985211,1706565032568,-3652.83585315,0.00027686,2]
[312985212,1706565032578,-293.08,0.00027778,2]
[312985213,1706565032586,-1000.0,0.0002787,2]
[312985214,1706565032595,-250.0,0.00027903,2]
[312985215,1706565032605,-158.89,0.00027928,2]
[312985216,1706565032614,-320.54,0.00027974,2]
[312985217,1706565032623,-1182.02889592,0.00028068,2]
[312985218,1706565032646,-337.80874292,0.00028068,2]
[312985219,1706565032669,-480.16236116,0.00028068,2]
[312985220,1706565032678,-250.0,0.00028097,2]
[312985221,1706565032687,-250.0,0.00028151,2]
[312985223,1706565032696,-155.13,0.00028214,2]
[312985225,1706565032705,-627.67763884,0.00028216,2]
[312985290,1706565038324,-2959.35236116,0.00028216,2]
[312985291,1706565038334,-320.54,0.00028262,2]
[312985292,1706565038344,-150.12,0.00028275,10]
[312985293,1706565038353,-664.9,0.00028275,2]
[312985294,1706565038363,-150.0,0.00028332,2]
[312985295,1706565038372,-155.13,0.00028424,2]
[312985296,1706565038382,-273.07757682,0.0002847,2]
[312985297,1706565038485,-46.3706502,0.0002847,2]
[312985298,1706565038494,-48944.23238882,0.00028472,2]
[312985299,1706565038506,-46135.88646917,0.00028472,2]
[312985300,1706565038518,-34576.39331712,0.00028472,2]
[312985301,1706565038527,-838.52,0.00028473,2]
[312985302,1706565038536,-320.54,0.00028551,2]
[312985303,1706565038546,-155.41,0.00028615,2]
[312985304,1706565038554,-155.13,0.00028634,2]
[312985305,1706565038564,-156.73,0.00028789,2]
[312985306,1706565038574,-320.54,0.00028839,2]
[312985307,1706565038583,-155.13,0.00028844,2]
[312985308,1706565038591,-220.04320149,0.00028895,2]
[312985309,1706565038600,-556.02380392,0.00028997,2]
[312985310,1706565038609,-499.99,0.00028997,2]
[312985311,1706565038618,-650.0,0.00029,3]
[312985312,1706565038627,-155.13,0.00029054,2]
[312985313,1706565038637,-320.54,0.00029128,2]
[312985314,1706565038646,-167.02,0.00029129,2]
[312985315,1706565038655,-298.18,0.00029171,2]
[312985316,1706565038664,-3587.03,0.0002926,2]
[312985317,1706565038673,-155.13,0.00029264,2]
[312985319,1706565038682,-320.54,0.00029416,2]
[312985321,1706565038691,-155.13,0.00029474,2]
[312985323,1706565038700,-155.13,0.00029684,2]
[312985325,1706565038709,-320.54,0.00029704,2]
[312985327,1706565038719,-163.95302928,0.00029796,4]
[312985329,1706565038729,-275.86130799,0.00029796,2]
[312985331,1706565038739,-159.28992989,0.00029796,2]
[312985333,1706565038749,-522.6083542,0.00029796,2]
[312985335,1706565038759,-277.71590008,0.000298,2]
[312985337,1706565038768,-416.68284328,0.00029894,2]
[312985339,1706565038777,-1906.6972547,0.00029894,2]
[312985341,1706565038786,-418.27294352,0.00029894,2]
[312985343,1706565038795,-933.94016922,0.00029894,2]
[312985345,1706565038803,-1255.76514993,0.00029894,2]
[312985347,1706565038812,-208.31498309,0.00029894,2]
[312985349,1706565038821,-513.30860542,0.00029894,2]
[312985351,1706565038830,-8296.09729138,0.00029895,2]
[312985353,1706565038839,-15788.38163876,0.00029895,2]
[312985355,1706565038851,-40762.57313624,0.00029895,2]
[312985358,1706565038870,-1002782.93595355,0.00029895,2]
[312985361,1706565038879,-39338.543,0.00029896,2]
[312985362,1706565038889,-207.4184,0.00029896,2]
[312985365,1706565038898,-100000.0,0.00029896,2]
[312985366,1706565038907,-245000.0,0.00029896,2]
[312985368,1706565038916,-664.9,0.00029919,2]
[312985370,1706565038925,-320.54,0.00029993,2]
[312985372,1706565038934,-155.0,0.0003,2]
[312985374,1706565038943,-692.52631931,0.0003,2]
[312985376,1706565038952,-582.7666979,0.0003,2]
[312985378,1706565038961,-4961.49630549,0.0003,4]
[312985380,1706565038970,-320.54,0.00030281,2]
[312985382,1706565038980,-3587.03,0.00030304,2]
[312985384,1706565038989,-320.54,0.00030569,2]
[312985386,1706565038998,-166.29,0.00030607,2]
[312985387,1706565039007,-320.54,0.00030858,2]
[312985388,1706565039016,-201.45,0.00030867,2]
[312985389,1706565039025,-155.41,0.00030879,2]
[312985390,1706565039035,-161.06,0.0003099,2]
[312985391,1706565039044,-320.54,0.00031146,2]
[312985392,1706565039053,-3587.03,0.00031348,2]
[312985393,1706565039062,-1000.0,0.00031354,2]
[312985394,1706565039072,-320.54,0.00031435,2]
[312985395,1706565039082,-664.9,0.00031563,2]
[312985396,1706565039091,-180.0,0.00031644,2]
[312985398,1706565039100,-320.54,0.00031723,2]
[312985400,1706565039110,-275.8613079,0.00031887,3]
[312985402,1706565039120,-263.89358247,0.00032,2]
[312985404,1706565039129,-320.54,0.00032011,2]
[312985406,1706565039138,-320.54,0.000323,2]
[312985408,1706565039148,-3587.03,0.00032392,2]
[312985410,1706565039157,-161.63385363,0.000325,2]
[312985412,1706565039167,-320.54,0.00032588,2]
[312985414,1706565039176,-320.54,0.00032877,2]
[312985416,1706565039186,-1018.90271501,0.00033071,6]
[312985418,1706565039195,-155.41,0.00033143,2]
[312985420,1706565039204,-664.9,0.00033207,2]
[312985422,1706565039214,-275.8613079,0.00033979,6]
[312985425,1706565039224,-163.95302923,0.00034447,7]
[312985427,1706565039234,-1000.0,0.00034837,2]
[312985429,1706565039243,-664.9,0.00034851,2]
[312985431,1706565039254,-5000.0,0.00035,7]
[312985433,1706565039263,-155.0,0.00035,4]
[312985435,1706565039272,-155.41,0.00035407,2]
[312985437,1706565039282,-154.89,0.000355,3]
[312985439,1706565039294,-154.89,0.000355,3]
[312985441,1706565039304,-154.89,0.000355,3]
[312985443,1706565039313,-154.89,0.000355,3]
[312985445,1706565039323,-154.89,0.000355,3]
[312985447,1706565039333,-154.89,0.000355,3]
[312985449,1706565039343,-154.89,0.000355,3]
[312985451,1706565039352,-154.89,0.000355,3]
[312985452,1706565039362,-154.89,0.000355,3]
[312985455,1706565039374,-275.8613079,0.0003607,8]
[312985457,1706565039385,-664.9,0.00036494,2]
[312985459,1706565039394,-155.41,0.0003767,2]
[312985461,1706565039403,-155.0,0.00037895,4]
[312985463,1706565039412,-201.1342087,0.00037895,4]
[312985465,1706565039422,-434.66438876,0.00037895,4]
[312985467,1706565039433,-697.51118737,0.00037895,4]
[312985469,1706565039442,-303.55478187,0.00037895,4]
[312985471,1706565039451,-167.43304946,0.00037895,4]
[312985472,1706565039461,-2580.69293854,0.00037895,5]
[312985474,1706565039471,-1180.88616775,0.00037896,4]
[312985475,1706565039480,-181.7778289,0.00037896,2]
[312985476,1706565039490,-4706.9627137,0.00037896,4]
[312985477,1706565039499,-346.93689193,0.00037896,4]
[312985478,1706565039508,-155.32764574,0.00037896,4]
[312985479,1706565039517,-263.27773987,0.00037896,4]
[312985480,1706565039527,-3234.95429051,0.00037896,4]
[312985481,1706565039537,-10524.21011333,0.00037896,4]
[312985482,1706565039546,-155.0,0.00037896,4]
[312985483,1706565039555,-24312.16676934,0.00037896,4]
[312985484,1706565039565,-1262.39631924,0.00037896,4]
[312985485,1706565039574,-324.50523867,0.00037896,4]
[312985486,1706565039583,-155.0,0.00037896,4]
[312985487,1706565039593,-248.80090434,0.00037896,4]
[312985488,1706565039602,-504.03826774,0.00037896,4]
[312985489,1706565039612,-164.06048249,0.00037896,4]
[312985490,1706565039622,-265.08803931,0.00037896,4]
[312985491,1706565039632,-155.0,0.00037896,4]
[312985492,1706565039642,-215.1525259,0.00037896,4]
[312985493,1706565039651,-155.48465172,0.00037896,4]
[312985494,1706565039661,-1608.71393111,0.00037896,4]
[312985495,1706565039670,-1245.40466885,0.00037896,4]
[312985496,1706565039680,-155.19642721,0.00037896,4]
[312985497,1706565039690,-212.8984188,0.00037896,4]
[312985498,1706565039699,-185.05485877,0.00037897,4]
[312985499,1706565039709,-236.06595536,0.00037897,7]